bitfinex/quotes_BTCUSD_20240719
["timestamp","ask_amount","ask_price","bid_price","bid_amount"]
[1721355776890,0.01259153,63884.0,63881.0,0.22104]
[1721355777591,0.0897,63888.0,63881.0,0.22104]
[1721355777795,0.01260443,63883.0,63881.0,0.22104]
[1721355777999,0.0897,63888.0,63881.0,0.22104]
[1721355778000,0.0827,63888.0,63881.0,0.22104]
[1721355778182,0.01260443,63882.0,63881.0,0.22104]
[1721355778384,0.002,63884.0,63881.0,0.22204]
[1721355778605,0.01260443,63882.0,63881.0,0.22104]
[1721355778808,0.002794,63887.0,63881.0,0.22104]
[1721355779001,0.01260443,63882.0,63881.0,0.22204]
[1721355779202,0.001,63883.0,63881.0,0.22204]
[1721355779439,0.01260573,63882.0,63881.0,0.22104]
[1721355779640,0.001,63883.0,63881.0,0.22204]
[1721355780017,0.01260418,63882.0,63881.0,0.22204]
[1721355780219,0.001,63883.0,63881.0,0.22204]
[1721355780427,0.01260418,63882.0,63881.0,0.22204]
[1721355780622,0.0827,63888.0,63881.0,0.15754]
[1721355781002,0.01539818,63887.0,63881.0,0.15754]
[1721355781186,0.01260418,63887.0,63881.0,0.15754]
[1721355781832,0.01260418,63887.0,63881.0,0.15654]
[1721355782009,0.01260418,63887.0,63881.0,0.15754]
[1721355782457,0.01260418,63887.0,63881.0,0.15654]
[1721355782629,0.01560418,63887.0,63881.0,0.15654]
[1721355783855,0.02160418,63887.0,63881.0,0.15654]
[1721355786666,0.156537,63883.0,63877.0,0.009174]
[1721355786838,0.156535,63884.0,63877.0,0.009174]
[1721355787037,0.156531,63885.0,63877.0,0.009174]
[1721355787271,0.01260418,63883.0,63877.0,0.009174]
[1721355787450,0.1441,63886.0,63877.0,0.009174]
[1721355787657,0.01260418,63882.0,63877.0,0.009174]
[1721355787795,0.01260418,63882.0,63879.0,0.156544]
[1721355787995,0.003,63887.0,63879.0,0.313089]
[1721355788203,0.002,63884.0,63883.0,0.469608]
[1721355788424,0.002,63884.0,63883.0,0.78268]
[1721355788626,0.002794,63892.0,63884.0,0.313065]
[1721355788828,0.0793,63893.0,63886.0,0.156528]
[1721355790129,0.0893,63893.0,63886.0,0.156528]
[1721355790375,0.0893,63893.0,63881.0,0.313079]
[1721355790550,0.002794,63892.0,63882.0,0.13002162]
[1721355790894,0.002794,63892.0,63883.0,0.313071]
[1721355791093,0.014794,63892.0,63885.0,0.15653]
[1721355791314,0.012,63892.0,63885.0,0.15653]
[1721355791518,0.0893,63893.0,63885.0,0.15653]
[1721355791693,0.002794,63892.0,63885.0,0.15653]
[1721355792310,0.00083,63888.0,63885.0,0.15653]
[1721355793559,0.00083,63888.0,63881.0,0.313082]
[1721355793763,0.00083,63888.0,63884.0,0.156533]
[1721355793939,0.0795,63887.0,63884.0,0.156533]
[1721355794144,0.09212126,63887.0,63885.0,0.15653]
[1721355794546,0.0795,63887.0,63885.0,0.15653]
[1721355795684,0.0855,63887.0,63885.0,0.15653]
[1721355796098,0.01262126,63886.0,63885.0,0.15653]
[1721355796515,0.0885,63887.0,63885.0,0.15653]
[1721355796936,0.01261509,63886.0,63885.0,0.15653]
[1721355797355,0.0795,63887.0,63885.0,0.15653]
[1721355797563,0.007,63886.0,63885.0,0.15653]
[1721355797760,0.01961481,63886.0,63885.0,0.15653]
[1721355797965,0.007,63886.0,63885.0,0.15653]
[1721355798341,0.002,63886.0,63885.0,0.15653]
[1721355798672,0.002,63886.0,63883.0,0.469602]
[1721355798891,0.0845,63887.0,63883.0,0.469602]
[1721355799210,0.01261481,63886.0,63883.0,0.469602]
[1721355799435,0.01261481,63886.0,63884.0,0.156533]
[1721355799639,0.0875,63887.0,63884.0,0.156533]
[1721355799854,0.01261481,63885.0,63884.0,0.156533]
[1721355800046,0.001,63886.0,63884.0,0.156533]
[1721355800248,0.01262374,63885.0,63884.0,0.156533]
[1721355800583,0.005,63886.0,63884.0,0.156533]
[1721355800788,0.004,63886.0,63884.0,0.156533]
[1721355800968,0.01262374,63885.0,63884.0,0.156533]
[1721355801330,0.0795,63887.0,63884.0,0.156533]
[1721355801726,0.0795,63887.0,63881.0,0.313082]
[1721355801727,0.07282374,63886.0,63882.0,0.156536]
[1721355801989,0.07682374,63886.0,63882.0,0.156536]
[1721355802135,0.07682374,63886.0,63880.0,0.31092274]
[1721355802341,0.07682374,63886.0,63879.0,0.156545]
[1721355803144,0.07782374,63886.0,63880.0,0.1300271]
[1721355803345,0.07382374,63886.0,63880.0,0.156543]
[1721355803566,0.07282374,63886.0,63880.0,0.156543]
[1721355803761,0.07382374,63886.0,63880.0,0.156543]
[1721355804480,0.07782374,63886.0,63880.0,0.156543]
[1721355805702,0.07682374,63886.0,63880.0,0.156543]
[1721355806185,0.07782374,63886.0,63880.0,0.156543]
[1721355808095,0.0754,63885.0,63878.0,0.156546]
[1721355808293,0.0754,63885.0,63879.0,0.13002852]
[1721355808507,0.0754,63885.0,63877.0,0.165724]
[1721355808508,0.01262374,63884.0,63877.0,0.165724]
[1721355808719,0.01262374,63884.0,63878.0,0.13002852]
[1721355808919,0.01262374,63884.0,63879.0,0.13002852]
[1721355809142,0.01262374,63884.0,63877.0,0.165724]
[1721355809338,0.01262374,63884.0,63878.0,0.13002852]
[1721355809564,0.01262374,63884.0,63877.0,0.165724]
[1721355809768,0.01262374,63884.0,63878.0,0.13003061]
[1721355810096,0.01262374,63884.0,63877.0,0.165724]
[1721355810236,0.01262374,63884.0,63878.0,0.1300322]
[1721355810421,0.01262374,63884.0,63877.0,0.165724]
[1721355810778,0.01462374,63884.0,63878.0,0.28757962]
[1721355810995,0.01462374,63884.0,63878.0,0.156548]
[1721355811436,0.01262374,63884.0,63878.0,0.156548]
[1721355812622,0.01462374,63884.0,63878.0,0.156548]
[1721355813190,0.01262374,63884.0,63878.0,0.156548]
[1721355813616,0.01462374,63884.0,63878.0,0.157548]
[1721355813796,0.1413,63883.0,63878.0,0.157548]
[1721355814195,0.01261473,63882.0,63878.0,0.157548]
[1721355814524,0.0636,63880.0,63878.0,0.001]
[1721355814671,0.0833,63879.0,63878.0,0.001]
[1721355815117,0.09591473,63879.0,63878.0,0.001]
[1721355815680,0.09591473,63879.0,63877.0,0.009174]
[1721355815880,0.09591473,63879.0,63878.0,0.001]
[1721355816077,0.09591473,63879.0,63877.0,0.009174]
[1721355816493,0.09691473,63879.0,63878.0,0.001]
[1721355816696,0.09691473,63879.0,63877.0,0.009174]
[1721355817105,0.09691473,63879.0,63877.0,0.010174]
[1721355817106,0.09791473,63879.0,63877.0,0.010174]
[1721355819215,0.0617,63878.0,63877.0,0.010174]
[1721355820041,0.07431473,63878.0,63877.0,0.010174]
[1721355820448,0.14981473,63878.0,63877.0,0.009174]
[1721355820653,0.15181473,63878.0,63877.0,0.010174]
[1721355821039,0.15081473,63878.0,63877.0,0.010174]
[1721355822051,0.14981473,63878.0,63877.0,0.009174]
[1721355822254,0.55441073,63878.0,63877.0,0.010174]
[1721355822631,0.55441073,63878.0,63877.0,0.009174]
[1721355822833,0.71195873,63878.0,63877.0,0.010174]
[1721355823227,0.71095873,63878.0,63877.0,0.009174]
[1721355823429,0.71195873,63878.0,63877.0,0.009174]
[1721355823632,0.71595873,63878.0,63877.0,0.009174]
[1721355824054,0.71195873,63878.0,63877.0,0.009174]
[1721355824281,0.71595873,63878.0,63877.0,0.009174]
[1721355824485,0.71395873,63878.0,63877.0,0.009174]
[1721355825770,0.31036273,63878.0,63877.0,0.009174]
[1721355825972,0.31136273,63878.0,63877.0,0.009174]
[1721355826795,0.15481473,63878.0,63877.0,0.009174]
[1721355827831,0.14981473,63878.0,63877.0,0.009174]
[1721355828205,0.15281473,63878.0,63877.0,0.009174]
[1721355829120,0.30936273,63878.0,63877.0,0.009174]
[1721355831773,0.62245873,63878.0,63877.0,0.009174]
[1721355833589,0.30936273,63878.0,63877.0,0.009174]
[1721355839518,0.62245873,63878.0,63877.0,0.009174]
[1721355842272,0.93555473,63878.0,63877.0,0.009174]
[1721355843318,0.93255473,63878.0,63877.0,0.009174]
[1721355843527,0.94055473,63878.0,63877.0,0.009174]
[1721355843731,1.25365073,63878.0,63877.0,0.009174]
[1721355843939,1.54844754,63878.0,63877.0,0.009174]
[1721355844096,2.30694289,63878.0,63877.0,0.009174]
[1721355844297,2.4803965,63878.0,63877.0,0.009174]
[1721355844501,2.32112847,63878.0,63877.0,0.009174]
[1721355844720,2.41162847,63878.0,63877.0,0.009174]
[1721355845335,2.52888809,63878.0,63877.0,0.009174]
[1721355845550,2.52083288,63878.0,63877.0,0.009174]
[1721355846151,2.57583288,63878.0,63877.0,0.009174]
[1721355846372,2.57083288,63878.0,63877.0,0.009174]
[1721355846588,2.46162847,63878.0,63877.0,0.009174]
[1721355846743,2.46762847,63878.0,63877.0,0.009174]
[1721355846954,2.45362847,63878.0,63877.0,0.009174]
[1721355847138,2.46762847,63878.0,63877.0,0.009174]
[1721355847337,2.54886146,63878.0,63877.0,0.009174]
[1721355847543,2.53486146,63878.0,63877.0,0.009174]
[1721355847956,2.59886146,63878.0,63877.0,0.009174]
[1721355848292,2.48162847,63878.0,63877.0,0.009174]
[1721355848493,2.5988478,63878.0,63877.0,0.009174]
[1721355848906,2.5848478,63878.0,63877.0,0.009174]
[1721355849131,2.59884752,63878.0,63877.0,0.009174]
[1721355850867,2.68788425,63878.0,63877.0,0.009174]
[1721355851075,2.67388425,63878.0,63877.0,0.009174]
[1721355851289,2.68788425,63878.0,63877.0,0.009174]
[1721355852131,2.54884752,63878.0,63877.0,0.009174]
[1721355852318,2.59884752,63878.0,63877.0,0.009174]
[1721355852557,2.58484752,63878.0,63877.0,0.009174]
[1721355852769,2.57084752,63878.0,63877.0,0.009174]
[1721355852907,2.59884752,63878.0,63877.0,0.009174]
[1721355853111,2.58484752,63878.0,63877.0,0.009174]
[1721355853724,2.59884752,63878.0,63877.0,0.009174]
[1721355854169,2.63597804,63878.0,63877.0,0.009174]
[1721355855789,2.46757199,63878.0,63877.0,0.009174]
[1721355856015,2.48157199,63878.0,63877.0,0.009174]
[1721355856462,2.46757199,63878.0,63877.0,0.009174]
[1721355856717,2.11847599,63878.0,63877.0,0.009174]
[1721355857360,2.19821446,63878.0,63877.0,0.009174]
[1721355857577,2.21221446,63878.0,63877.0,0.009174]
[1721355858330,1.71221446,63878.0,63877.0,0.009174]
[1721355858535,2.21221446,63878.0,63877.0,0.009174]
[1721355858743,2.21222603,63878.0,63877.0,0.009174]
[1721355859541,2.11847599,63878.0,63877.0,0.009174]
[1721355860166,2.23566354,63878.0,63877.0,0.009174]
[1721355861872,2.23568967,63878.0,63877.0,0.009174]
[1721355862686,2.02797599,63878.0,63877.0,0.009174]
[1721355862925,1.61847599,63878.0,63877.0,0.009174]
[1721355863357,1.52797599,63878.0,63877.0,0.009174]
[1721355863533,1.61847599,63878.0,63877.0,0.009174]
[1721355863724,1.59047599,63878.0,63877.0,0.009174]
[1721355863933,1.60447599,63878.0,63877.0,0.009174]
[1721355864161,1.61847599,63878.0,63877.0,0.009174]
[1721355866530,1.62176071,63878.0,63877.0,0.009174]
[1721355866737,1.61847599,63878.0,63877.0,0.009174]
[1721355867568,1.71226071,63878.0,63877.0,0.009174]
[1721355867990,1.93157199,63878.0,63877.0,0.009174]
[1721355868781,2.02084295,63878.0,63877.0,0.009174]
[1721355869264,1.93157199,63878.0,63877.0,0.009174]
[1721355869607,1.91757199,63878.0,63877.0,0.009174]
[1721355869812,1.93157199,63878.0,63877.0,0.009174]
[1721355870017,1.94557199,63878.0,63877.0,0.009174]
[1721355870596,1.91757199,63878.0,63877.0,0.009174]
[1721355872267,1.98157199,63878.0,63877.0,0.009174]
[1721355873094,1.93157199,63878.0,63877.0,0.009174]
[1721355873244,1.98157199,63878.0,63877.0,0.009174]
[1721355873808,2.13592156,63878.0,63877.0,0.009174]
[1721355874017,1.93157199,63878.0,63877.0,0.009174]
[1721355874656,1.98157199,63878.0,63877.0,0.009174]
[1721355874900,1.93157199,63878.0,63877.0,0.009174]
[1721355875149,1.98157199,63878.0,63877.0,0.009174]
[1721355875573,2.00356248,63878.0,63877.0,0.009174]
[1721355876548,2.31665848,63878.0,63877.0,0.009174]
[1721355876768,2.45741299,63878.0,63877.0,0.009174]
[1721355876970,2.31665848,63878.0,63877.0,0.009174]
[1721355877511,2.29466799,63878.0,63877.0,0.009174]
[1721355877719,2.31577419,63878.0,63877.0,0.009174]
[1721355878148,2.47012376,63878.0,63877.0,0.009174]
[1721355879274,2.31577419,63878.0,63877.0,0.009174]
[1721355880717,2.29466799,63878.0,63877.0,0.009174]
[1721355880882,2.45658091,63878.0,63877.0,0.009174]
[1721355881290,2.31579457,63878.0,63877.0,0.009174]
[1721355881588,2.45658638,63878.0,63877.0,0.009174]
[1721355882115,2.47014414,63878.0,63877.0,0.009174]
[1721355882849,2.47014414,63878.0,63871.0,0.002]
[1721355882850,1.959067,63872.0,63871.0,0.002]
[1721355883012,2.44934874,63872.0,63871.0,0.002]
[1721355883228,2.46181937,63872.0,63871.0,0.002]
[1721355884328,2.47381937,63872.0,63871.0,0.002]
[1721355885344,2.48781937,63872.0,63871.0,0.002]
[1721355885835,2.43781937,63872.0,63871.0,0.002]
[1721355886791,2.46236834,63872.0,63871.0,0.002]
[1721355887451,2.08564234,63872.0,63871.0,0.002]
[1721355892330,2.09501722,63872.0,63871.0,0.002]
[1721355892807,2.01321722,63872.0,63871.0,0.002]
[1721355893696,1.98866825,63872.0,63871.0,0.002]
[1721355898338,0.782875,63867.0,63866.0,0.006174]
[1721355898503,1.10327945,63867.0,63866.0,0.006174]
[1721355899490,1.11227945,63867.0,63866.0,0.006174]
[1721355899936,1.11827945,63867.0,63866.0,0.006174]
[1721355900307,1.11827693,63867.0,63866.0,0.006174]
[1721355901521,1.02777693,63867.0,63866.0,0.006174]
[1721355901734,0.5876815,63867.0,63866.0,0.006174]
[1721355902983,0.0274565,63867.0,63866.0,0.137374]
[1721355903183,0.0274565,63867.0,63866.0,0.293951]
[1721355903395,0.0274565,63867.0,63866.0,0.137374]
[1721355903535,0.015,63867.0,63866.0,0.137374]
[1721355903737,0.02746443,63867.0,63866.0,0.293951]
[1721355903964,0.015,63867.0,63866.0,1.07464274]
[1721355904168,0.015,63867.0,63866.0,1.38779774]
[1721355904368,0.015,63867.0,63866.0,1.51785385]
[1721355904576,0.006,63867.0,63866.0,1.38779774]
[1721355904778,0.006,63867.0,63866.0,1.54085057]
[1721355904982,0.00083,63880.0,63878.0,0.156548]
[1721355905189,0.00083,63880.0,63879.0,0.605236]
[1721355905580,0.00083,63880.0,63879.0,0.918327]
[1721355908410,0.00083,63880.0,63879.0,0.920327]
[1721355908797,0.00183,63880.0,63879.0,0.928327]
[1721355910013,0.00183,63880.0,63879.0,0.615236]
[1721355932108,0.00183,63880.0,63879.0,0.928327]
[1721355932913,0.00183,63880.0,63879.0,0.615236]
[1721355933524,0.00183,63880.0,63879.0,0.74526983]
[1721355934187,0.00183,63880.0,63879.0,0.60966983]
[1721355935498,0.00183,63880.0,63879.0,0.60967016]
[1721355937548,0.00183,63880.0,63879.0,0.29657916]
[1721355937886,0.01306932,63880.0,63879.0,0.29657916]
[1721355938089,0.00183,63880.0,63879.0,0.29657916]
[1721355938286,0.01306932,63880.0,63879.0,0.29657916]
[1721355938491,0.00183,63880.0,63879.0,0.29657916]
[1721355938709,0.01306932,63880.0,63879.0,0.166545]
[1721355938912,0.00183,63880.0,63879.0,0.29657922]
[1721355941662,0.00183,63880.0,63879.0,0.60967022]
[1721355942109,0.00183,63880.0,63879.0,0.60967017]
[1721355943960,0.00183,63880.0,63879.0,0.29657917]
[1721355944298,0.01272089,63880.0,63879.0,0.60967017]
[1721355945533,0.09462089,63880.0,63879.0,0.60967017]
[1721355946116,0.08373,63880.0,63879.0,0.60967017]
[1721355946913,0.08373,63880.0,63879.0,0.14003417]
[1721355947121,0.14463,63880.0,63879.0,0.01]
[1721355947397,0.15552089,63880.0,63879.0,0.01]
[1721355949719,0.09462089,63880.0,63879.0,0.01]
[1721355950571,0.01272089,63880.0,63879.0,0.92275696]
[1721355950689,0.01272089,63880.0,63879.0,0.99285696]
[1721355950908,0.00183,63880.0,63879.0,1.08335696]
[1721355951103,0.00183,63880.0,63879.0,1.14565696]
[1721355951398,0.00183,63880.0,63879.0,0.92275696]
[1721355951551,0.08283,63880.0,63879.0,0.92275696]
[1721355951756,0.08283,63880.0,63879.0,0.6096624]
[1721355952738,0.08283,63880.0,63879.0,0.01]
[1721355952940,0.14413,63880.0,63879.0,0.01]
[1721355953140,0.15502548,63880.0,63879.0,0.01]
[1721355956896,0.01272548,63880.0,63879.0,0.792727]
[1721355957100,0.00183,63880.0,63879.0,0.792727]
[1721355958354,0.00183,63880.0,63879.0,0.479636]
[1721355959540,0.13883,63880.0,63879.0,0.479636]
[1721355959778,0.13883,63880.0,63879.0,0.166545]
[1721355962652,0.14972548,63880.0,63879.0,0.166545]
[1721355963356,0.14972548,63880.0,63879.0,0.01]
[1721355966013,0.08842548,63880.0,63879.0,0.166545]
[1721355966206,0.07753,63880.0,63879.0,0.166545]
[1721355966405,0.07753,63880.0,63879.0,0.01]
[1721355966809,0.08841831,63880.0,63879.0,0.01]
[1721355966982,0.62404831,63880.0,63879.0,0.01]
[1721355967204,1.14913778,63880.0,63879.0,0.01]
[1721355967401,1.87531178,63880.0,63879.0,0.01]
[1721355967947,2.06903311,63880.0,63879.0,0.01]
[1721355968083,2.06623911,63880.0,63879.0,0.008]
[1721355968287,2.01623911,63880.0,63879.0,0.008]
[1721355968567,1.82669105,63880.0,63879.0,0.008]
[1721355969460,0.612025,63867.0,63866.0,0.006174]
[1721355969710,0.702525,63867.0,63866.0,0.006174]
[1721355970071,0.71555876,63867.0,63866.0,0.006174]
[1721355970965,0.72155876,63867.0,63866.0,0.007174]
[1721355971182,0.72355876,63867.0,63866.0,0.006174]
[1721355971761,1.03670876,63867.0,63866.0,0.006174]
[1721355971959,1.02870876,63867.0,63866.0,0.006174]
[1721355972791,1.03370876,63867.0,63866.0,0.006174]
[1721355972994,1.02870876,63867.0,63866.0,0.006174]
[1721355973395,1.04070876,63867.0,63866.0,0.006174]
[1721355973811,1.03370876,63867.0,63866.0,0.006174]
[1721355974011,1.02870876,63867.0,63866.0,0.006174]
[1721355974258,1.03670876,63867.0,63866.0,0.006174]
[1721355974455,1.03670876,63867.0,63866.0,0.007174]
[1721355974456,1.04270876,63867.0,63866.0,0.007174]
[1721355975512,1.04370876,63867.0,63866.0,0.007174]
[1721355975891,1.03770876,63867.0,63866.0,0.006174]
[1721355976089,1.04370876,63867.0,63866.0,0.007174]
[1721355978372,1.35685876,63867.0,63866.0,0.007174]
[1721355985804,1.35768876,63867.0,63866.0,0.007174]
[1721355991828,0.98113876,63867.0,63866.0,0.007174]
[1721355995012,1.04443876,63867.0,63866.0,0.007174]
[1721356001108,0.98113876,63867.0,63866.0,0.007174]
[1721356007514,0.9603617,63867.0,63866.0,0.007174]
[1721356011426,0.9603617,63867.0,63866.0,0.163751]
[1721356011427,0.02886376,63867.0,63866.0,0.163751]
[1721356011729,0.02886376,63867.0,63866.0,0.233851]
[1721356011859,0.01583,63867.0,63866.0,0.92589225]
[1721356012060,0.01583,63867.0,63866.0,0.922761]
[1721356012477,0.01583,63867.0,63866.0,0.921761]
[1721356012478,0.00083,63867.0,63866.0,0.921761]
[1721356013273,0.00683,63867.0,63866.0,0.922761]
[1721356013713,0.00983,63867.0,63866.0,0.921761]
[1721356014453,0.00083,63867.0,63866.0,0.921761]
[1721356015101,0.00283,63867.0,63866.0,0.921761]
[1721356015309,0.00283,63867.0,63866.0,0.922761]
[1721356016241,0.00283,63867.0,63866.0,1.39029774]
[1721356017962,0.00083,63867.0,63866.0,1.39029774]
[1721356018376,0.00183,63867.0,63866.0,1.39229774]
[1721356018779,0.00283,63867.0,63866.0,1.40029774]
[1721356022030,0.00283,63867.0,63866.0,0.079774]
[1721356022228,0.00283,63867.0,63866.0,0.486906]
[1721356022427,0.08593,63867.0,63866.0,0.173751]
[1721356022626,0.08593,63867.0,63866.0,0.017174]
[1721356022886,0.09678343,63867.0,63866.0,0.173751]
[1721356023511,0.15858343,63867.0,63866.0,0.017174]
[1721356024656,0.15858343,63867.0,63866.0,0.014174]
[1721356024657,0.15758343,63867.0,63866.0,0.014174]
[1721356025288,0.15658343,63867.0,63866.0,0.006174]
[1721356025498,0.16058343,63867.0,63866.0,0.006174]
[1721356025645,0.16158343,63867.0,63866.0,0.006174]
[1721356026163,0.15658343,63867.0,63866.0,0.006174]
[1721356026367,0.15758343,63867.0,63866.0,0.006174]
[1721356026830,0.09578343,63867.0,63866.0,0.006174]
[1721356026980,0.01268343,63867.0,63866.0,0.538006]
[1721356027532,0.00583,63867.0,63866.0,0.538006]
[1721356027934,0.00183,63867.0,63866.0,0.538006]
[1721356028119,0.00083,63867.0,63866.0,0.538006]
[1721356028319,0.00083,63867.0,63866.0,0.541006]
[1721356028607,0.00083,63867.0,63866.0,0.547006]
[1721356028608,0.00183,63867.0,63866.0,0.547006]
[1721356029390,0.00183,63867.0,63866.0,0.860161]
[1721356035012,0.00183,63867.0,63866.0,1.48829774]
[1721356035223,0.00183,63867.0,63866.0,1.66835038]
[1721356035428,0.00183,63867.0,63866.0,1.79135038]
[1721356036176,0.00183,63867.0,63866.0,2.10450538]
[1721356036779,0.00183,63867.0,63866.0,2.10448808]
[1721356037196,0.00183,63867.0,63866.0,2.1513317]
[1721356037439,0.00183,63867.0,63866.0,2.51895876]
[1721356037568,0.00183,63867.0,63866.0,2.17175351]
[1721356037778,0.00183,63867.0,63866.0,2.1533066]
[1721356037779,0.00283,63867.0,63866.0,2.1533066]
[1721356037996,0.00183,63867.0,63866.0,2.10048808]
[1721356038191,0.00083,63867.0,63866.0,2.10848808]
[1721356038393,0.00183,63867.0,63866.0,2.10848808]
[1721356038600,0.00283,63867.0,63866.0,2.11348808]
[1721356039295,0.00183,63867.0,63866.0,2.10048808]
[1721356039635,0.00283,63867.0,63866.0,2.11448808]
[1721356040142,0.00283,63867.0,63866.0,2.11448234]
[1721356046543,0.00283,63867.0,63866.0,1.98445274]
[1721356046834,0.00283,63867.0,63866.0,2.11448234]
[1721356053276,0.00283,63867.0,63866.0,2.11448261]
[1721356059896,0.00283,63867.0,63866.0,2.11448246]
[1721356063075,0.00283,63867.0,63866.0,1.98445274]
[1721356063276,0.00283,63867.0,63866.0,2.11448246]
[1721356064559,0.00283,63867.0,63866.0,2.30952664]
[1721356066345,0.00283,63867.0,63866.0,2.3095267]
[1721356066537,0.00283,63867.0,63866.0,2.2595267]
[1721356066840,0.00283,63867.0,63866.0,2.3095267]
[1721356067242,0.00283,63867.0,63866.0,2.2394267]
[1721356070511,0.00283,63867.0,63866.0,2.1773267]
[1721356071503,0.00283,63867.0,63866.0,2.22413371]
[1721356072623,0.00283,63867.0,63866.0,2.1773267]
[1721356073037,0.00283,63867.0,63866.0,2.17732691]
[1721356073561,0.00283,63867.0,63866.0,2.24759812]
[1721356074574,0.00283,63867.0,63866.0,2.5948148]
[1721356075446,0.00283,63867.0,63866.0,2.52454359]
[1721356076333,0.00283,63867.0,63866.0,2.52454316]
[1721356076723,0.00283,63867.0,63866.0,2.61829719]
[1721356077463,0.00283,63867.0,63866.0,2.52454316]
[1721356078404,0.00283,63867.0,63866.0,2.6417357]
[1721356079467,0.00283,63867.0,63866.0,2.31666174]
[1721356079640,0.00283,63867.0,63866.0,2.52454057]
[1721356080527,0.14663,63867.0,63866.0,1.73473057]
[1721356080718,0.14663,63867.0,63866.0,0.62493508]
[1721356080904,0.14663,63867.0,63866.0,0.67191032]
[1721356081140,0.14663,63867.0,63866.0,0.82629206]
[1721356081289,0.14663,63867.0,63866.0,1.13944706]
[1721356081690,0.14663,63867.0,63866.0,1.48972778]
[1721356081887,0.14663,63867.0,63866.0,1.89681714]
[1721356082169,0.14663,63867.0,63866.0,1.90286339]
[1721356082296,0.14663,63867.0,63866.0,1.92586339]
[1721356082897,0.14663,63867.0,63866.0,2.0197802]
[1721356083154,0.14663,63867.0,63866.0,1.9697802]
[1721356083471,0.14663,63867.0,63866.0,1.99630892]
[1721356083756,0.14663,63867.0,63866.0,1.92586964]
[1721356083965,0.14663,63867.0,63866.0,1.87586964]
[1721356084714,0.14663,63867.0,63866.0,1.99630011]
[1721356084918,0.14663,63867.0,63866.0,1.94630011]
[1721356085319,0.14663,63867.0,63866.0,1.87586964]
[1721356085525,0.14663,63867.0,63866.0,1.99629545]
[1721356086104,0.14663,63867.0,63866.0,1.59906681]
[1721356086306,0.14663,63867.0,63866.0,1.52863896]
[1721356086736,0.14663,63867.0,63866.0,1.94631572]
[1721356086939,0.14663,63867.0,63866.0,1.94631132]
[1721356087174,0.14663,63867.0,63866.0,1.59906681]
[1721356087372,0.14663,63867.0,63866.0,1.52863896]
[1721356087751,0.14663,63867.0,63866.0,1.59906681]
[1721356087947,0.14663,63867.0,63866.0,1.52863896]
[1721356088777,0.14663,63867.0,63866.0,1.59906681]
[1721356088978,0.14663,63867.0,63866.0,1.52863896]
[1721356089535,0.14663,63867.0,63866.0,1.52863827]
[1721356090100,0.14663,63867.0,63866.0,1.57863827]
[1721356090499,0.14663,63867.0,63866.0,1.52863827]
[1721356090998,0.14663,63867.0,63866.0,1.66607916]
[1721356091752,0.14563,63867.0,63866.0,1.66107916]
[1721356092153,0.14663,63867.0,63866.0,1.66607916]
[1721356092350,0.14663,63867.0,63866.0,1.61913827]
[1721356092563,0.00183,63867.0,63866.0,1.71108131]
[1721356092765,0.00183,63867.0,63866.0,2.08855239]
[1721356092970,0.00083,63867.0,63866.0,2.19190976]
[1721356093168,0.00083,63867.0,63866.0,2.38770739]
[1721356093367,0.00183,63867.0,63866.0,2.39970739]
[1721356093564,0.00183,63867.0,63866.0,2.38770739]
[1721356093992,0.00383,63867.0,63866.0,2.40470739]
[1721356094156,0.00283,63867.0,63866.0,2.39270739]
[1721356094662,0.00283,63867.0,63866.0,2.39970739]
[1721356094850,0.00383,63867.0,63866.0,2.40470739]
[1721356095816,0.073898,63867.0,63866.0,2.40466636]
[1721356096223,0.073898,63867.0,63866.0,2.75419793]
[1721356096435,0.073898,63867.0,63866.0,2.73540692]
[1721356096679,0.073898,63867.0,63866.0,2.87616932]
[1721356096879,0.073898,63867.0,63866.0,3.04126932]
[1721356097093,0.00083,63880.0,63879.0,1.458909]
[1721356097260,0.00083,63880.0,63879.0,2.54267013]
[1721356097813,0.00083,63880.0,63879.0,2.99640802]
[1721356098243,0.00083,63880.0,63879.0,3.16150802]
[1721356098451,0.00083,63880.0,63879.0,3.02086113]
[1721356098658,0.00283,63880.0,63879.0,3.03786113]
[1721356098869,0.00283,63880.0,63879.0,3.17831716]
[1721356099094,0.00183,63880.0,63879.0,3.06829424]
[1721356099294,0.00183,63880.0,63879.0,2.81004489]
[1721356099406,0.00183,63880.0,63879.0,2.63384334]
[1721356099605,0.00183,63880.0,63879.0,2.7320868]
[1721356099826,0.00183,63880.0,63879.0,2.61506906]
[1721356100033,0.00183,63880.0,63879.0,2.7320923]
[1721356100433,0.00183,63880.0,63879.0,2.62906906]
[1721356100886,0.00083,63880.0,63879.0,2.61706906]
[1721356101061,0.00083,63880.0,63879.0,2.7340923]
[1721356101376,0.00083,63880.0,63879.0,2.7480923]
[1721356101608,0.00083,63880.0,63879.0,2.60306906]
[1721356101808,0.00083,63880.0,63879.0,2.7106394]
[1721356101991,0.00083,63880.0,63879.0,2.7246394]
[1721356102232,0.00083,63880.0,63879.0,2.63109958]
[1721356102439,0.00083,63880.0,63879.0,2.72467018]
[1721356103523,0.00083,63880.0,63879.0,2.63109958]
[1721356104350,0.00083,63880.0,63879.0,2.64036627]
[1721356104501,0.00083,63880.0,63879.0,2.71049932]
[1721356104710,0.00083,63880.0,63879.0,2.71050563]
[1721356105349,0.00083,63880.0,63879.0,2.51038038]
[1721356105554,0.00083,63880.0,63879.0,2.71049646]
[1721356105972,0.00083,63880.0,63879.0,2.36337922]
[1721356106188,0.00083,63880.0,63879.0,2.29325005]
[1721356107957,0.00083,63880.0,63879.0,2.60634105]
[1721356108455,0.00083,63880.0,63879.0,2.65307243]
[1721356108653,0.00083,63880.0,63879.0,2.6530706]
[1721356109081,0.00083,63880.0,63879.0,2.54644276]
[1721356109243,0.00083,63880.0,63879.0,2.67643637]
[1721356109440,0.00083,63884.0,63883.0,0.05]
[1721356109730,0.00083,63884.0,63883.0,1.85669935]
[1721356109907,0.00083,63884.0,63883.0,1.95669935]
[1721356110902,0.00083,63884.0,63883.0,2.01829935]